fUSD/lending_fUSD_20260217
["ID","MTS","AMOUNT","RATE_DAILY","PERIOD"]
[405798091,1771321840430,-500.0,9.138e-05,2]
[405798092,1771321840439,-500.0,9.138e-05,2]
[405798094,1771321840449,-500.0,9.138e-05,2]
[405798095,1771321840459,-500.0,9.138e-05,2]
[405798096,1771321840468,-500.0,9.138e-05,2]
[405798097,1771321840477,-150.31509327,9.138e-05,2]
[405798098,1771321840486,-500.0,9.138e-05,2]
[405798099,1771321840495,-500.0,9.138e-05,2]
[405798100,1771321840505,-572.0,9.138e-05,2]
[405798101,1771321840515,-150.0,9.138e-05,2]
[405798102,1771321840524,-500.0,9.138e-05,2]
[405798103,1771321840534,-830.0,9.171e-05,2]
[405798104,1771321840543,-151.2254874,9.193e-05,2]
[405798105,1771321840553,-500.0,9.193e-05,2]
[405798106,1771321840563,-3358.0,9.193e-05,2]
[405798107,1771321840573,-500.87477363,9.193e-05,2]
[405798108,1771321840582,-500.0,9.193e-05,2]
[405798109,1771321840592,-500.0,9.193e-05,2]
[405798110,1771321840604,-500.0,9.193e-05,2]
[405798111,1771321840615,-500.0,9.193e-05,2]
[405798112,1771321840624,-150.07216309,9.193e-05,2]
[405798113,1771321840634,-150.0,9.193e-05,2]
[405798114,1771321840644,-500.0,9.193e-05,2]
[405798115,1771321840654,-500.0,9.193e-05,2]
[405798116,1771321840663,-445.0,9.193e-05,2]
[405798117,1771321840676,-537.18600864,9.193e-05,2]
[405798118,1771321840686,-150.0,9.193e-05,2]
[405798119,1771321840697,-500.0,9.193e-05,2]
[405798120,1771321840707,-500.0,9.193e-05,2]
[405798121,1771321840717,-500.0,9.193e-05,2]
[405798122,1771321840727,-500.0,9.193e-05,2]
[405798123,1771321840737,-504.49885719,9.193e-05,2]
[405798124,1771321840746,-500.0,9.193e-05,2]
[405798125,1771321840756,-500.0,9.193e-05,2]
[405798126,1771321840766,-500.0,9.193e-05,2]
[405798127,1771321840775,-500.0,9.193e-05,2]
[405798128,1771321840785,-616.5683879,9.193e-05,2]
[405798129,1771321840795,-572.0,9.193e-05,2]
[405798130,1771321840805,-201.09695119,9.193e-05,2]
[405798131,1771321840815,-500.0,9.193e-05,2]
[405798132,1771321840825,-500.0,9.248e-05,2]
[405798133,1771321840835,-3358.0,9.248e-05,2]
[405798134,1771321840844,-220.15883999,9.248e-05,2]
[405798135,1771321840854,-500.0,9.248e-05,2]
[405798136,1771321840864,-500.0,9.248e-05,2]
[405798137,1771321840874,-500.0,9.248e-05,2]
[405798138,1771321840883,-500.0,9.248e-05,2]
[405798139,1771321840893,-500.0,9.248e-05,2]
[405798140,1771321840903,-445.0,9.248e-05,2]
[405798141,1771321840913,-150.0,9.248e-05,2]
[405798142,1771321840922,-500.0,9.248e-05,2]
[405798143,1771321840932,-202.16866536,9.248e-05,2]
[405798144,1771321840942,-500.0,9.248e-05,2]
[405798145,1771321840951,-187.36614029,9.248e-05,2]
[405798146,1771321840961,-500.0,9.248e-05,2]
[405798147,1771321840970,-500.0,9.248e-05,2]
[405798148,1771321840980,-500.0,9.248e-05,2]
[405798149,1771321840989,-500.0,9.248e-05,2]
[405798150,1771321840999,-500.0,9.248e-05,2]
[405798151,1771321841009,-572.0,9.248e-05,2]
[405798152,1771321841019,-500.0,9.248e-05,2]
[405798153,1771321841028,-500.0,9.278e-05,2]
[405798154,1771321841038,-178.36591542,9.302e-05,2]
[405798155,1771321841047,-3358.0,9.302e-05,2]
[405798156,1771321841057,-500.0,9.302e-05,2]
[405798157,1771321841067,-500.0,9.302e-05,2]
[405798158,1771321841076,-510.76125773,9.302e-05,2]
[405798159,1771321841086,-500.0,9.302e-05,2]
[405798160,1771321841095,-500.0,9.302e-05,2]
[405798161,1771321841105,-445.0,9.302e-05,2]
[405798162,1771321841114,-150.0,9.302e-05,2]
[405798163,1771321841124,-329.95129651,9.302e-05,2]
[405798164,1771321841133,-500.0,9.302e-05,2]
[405798165,1771321841143,-500.0,9.302e-05,2]
[405798166,1771321841153,-500.0,9.302e-05,2]
[405798167,1771321841162,-500.0,9.302e-05,2]
[405798168,1771321841172,-500.0,9.302e-05,2]
[405798169,1771321841183,-500.0,9.302e-05,2]
[405798170,1771321841192,-572.0,9.302e-05,2]
[405798171,1771321841202,-500.0,9.302e-05,2]
[405798172,1771321841213,-245.0,9.314e-05,2]
[405798173,1771321841222,-250.0,9.333e-05,2]
[405798174,1771321841233,-3358.0,9.357e-05,2]
[405798175,1771321841243,-500.0,9.357e-05,2]
[405798176,1771321841253,-500.0,9.357e-05,2]
[405798177,1771321841266,-500.0,9.357e-05,2]
[405798178,1771321841276,-445.0,9.357e-05,2]
[405798179,1771321841286,-250.0,9.357e-05,2]
[405798180,1771321841295,-500.0,9.357e-05,2]
[405798181,1771321841305,-500.0,9.357e-05,2]
[405798182,1771321841315,-500.0,9.357e-05,2]
[405798183,1771321841325,-500.0,9.357e-05,2]
[405798184,1771321841335,-500.0,9.357e-05,2]
[405798185,1771321841347,-500.0,9.357e-05,2]
[405798186,1771321841356,-572.0,9.357e-05,2]
[405798187,1771321841366,-500.33776257,9.357e-05,2]
[405798188,1771321841376,-166.66,9.368e-05,2]
[405798189,1771321841386,-229.0,9.378e-05,2]
[405798190,1771321841396,-255.0,9.403e-05,2]
[405798191,1771321841405,-420.0,9.403e-05,2]
[405798192,1771321841415,-1680.0,9.403e-05,2]
[405798193,1771321841424,-223.0,9.404e-05,2]
[405798194,1771321841434,-3358.0,9.412e-05,2]
[405798195,1771321841444,-500.0,9.412e-05,2]
[405798196,1771321841453,-500.0,9.412e-05,2]
[405798197,1771321841464,-500.0,9.412e-05,2]
[405798198,1771321841473,-445.0,9.412e-05,2]
[405798199,1771321841483,-500.0,9.412e-05,2]
[405798200,1771321841493,-500.0,9.412e-05,2]
[405798201,1771321841503,-464.38268717,9.412e-05,2]
[405798202,1771321841515,-500.0,9.412e-05,2]
[405798203,1771321841525,-500.0,9.412e-05,2]
[405798204,1771321841535,-500.0,9.412e-05,2]
[405798205,1771321841546,-572.0,9.412e-05,2]
[405798206,1771321841558,-3358.0,9.467e-05,2]
[405798207,1771321841569,-500.0,9.467e-05,2]
[405798208,1771321841580,-500.0,9.467e-05,2]
[405798209,1771321841591,-500.0,9.467e-05,2]
[405798210,1771321841607,-445.0,9.467e-05,2]
[405798211,1771321841618,-500.0,9.467e-05,2]
[405798212,1771321841629,-500.0,9.467e-05,2]
[405798213,1771321841639,-500.0,9.467e-05,2]
[405798214,1771321841649,-500.0,9.467e-05,2]
[405798215,1771321841658,-500.0,9.467e-05,2]
[405798216,1771321841668,-572.0,9.467e-05,2]
[405798217,1771321841680,-405.0,9.518e-05,2]
[405798218,1771321841690,-3358.0,9.522e-05,2]
[405798219,1771321841699,-500.0,9.522e-05,2]
[405798220,1771321841709,-500.0,9.522e-05,2]
[405798221,1771321841719,-500.0,9.522e-05,2]
[405798222,1771321841729,-445.0,9.522e-05,2]
[405798223,1771321841740,-500.0,9.522e-05,2]
[405798224,1771321841750,-500.0,9.522e-05,2]
[405798225,1771321841760,-500.0,9.522e-05,2]
[405798226,1771321841770,-500.0,9.522e-05,2]
[405798227,1771321841781,-500.0,9.522e-05,2]
[405798228,1771321841791,-572.0,9.522e-05,2]
[405798229,1771321841801,-500.0,9.552e-05,2]
[405798230,1771321841811,-3358.0,9.576e-05,2]
[405798231,1771321841820,-500.0,9.576e-05,2]
[405798232,1771321841829,-500.0,9.576e-05,2]
[405798233,1771321841839,-445.0,9.576e-05,2]
[405798234,1771321841849,-500.0,9.576e-05,2]
[405798235,1771321841859,-155.81655615,9.576e-05,2]
[405798236,1771321841868,-153.57378643,9.576e-05,2]
[405798237,1771321841878,-500.0,9.576e-05,2]
[405798238,1771321841888,-500.0,9.576e-05,2]
[405798239,1771321841898,-500.0,9.576e-05,2]
[405798240,1771321841908,-572.0,9.576e-05,2]
[405798241,1771321841918,-297.077011,9.593e-05,2]
[405798242,1771321841928,-3358.0,9.631e-05,2]
[405798243,1771321841937,-500.0,9.631e-05,2]
[405798244,1771321841947,-500.0,9.631e-05,2]
[405798245,1771321841957,-445.0,9.631e-05,2]
[405798246,1771321841967,-500.0,9.631e-05,2]
[405798247,1771321841977,-500.0,9.631e-05,2]
[405798248,1771321841988,-500.0,9.631e-05,2]
[405798249,1771321841997,-500.0,9.631e-05,2]
[405798250,1771321842007,-572.0,9.631e-05,2]
[405798251,1771321842018,-166.66,9.649e-05,2]
[405798252,1771321842029,-229.0,9.652e-05,2]
[405798253,1771321842039,-3358.0,9.686e-05,2]
[405798254,1771321842051,-500.0,9.686e-05,2]
[405798255,1771321842061,-500.0,9.686e-05,2]
[405798256,1771321842071,-445.0,9.686e-05,2]
[405798257,1771321842081,-500.0,9.686e-05,2]
[405798258,1771321842091,-500.0,9.686e-05,2]
[405798259,1771321842100,-500.0,9.686e-05,2]
[405798260,1771321842110,-500.0,9.686e-05,2]
[405798261,1771321842120,-572.0,9.686e-05,2]
[405798262,1771321842130,-3358.0,9.741e-05,2]
[405798263,1771321842140,-500.0,9.741e-05,2]
[405798264,1771321842150,-500.0,9.741e-05,2]
[405798265,1771321842159,-445.0,9.741e-05,2]
[405798266,1771321842171,-500.0,9.741e-05,2]
[405798267,1771321842182,-500.0,9.741e-05,2]
[405798268,1771321842195,-211.9355564,9.741e-05,2]
[405798269,1771321842206,-500.0,9.741e-05,2]
[405798270,1771321842216,-572.0,9.741e-05,2]
[405798271,1771321842226,-179.0,9.775e-05,2]
[405798272,1771321842235,-3358.0,9.796e-05,2]
[405798273,1771321842245,-500.0,9.796e-05,2]
[405798274,1771321842254,-224.65460803,9.796e-05,2]
[405798275,1771321842265,-445.0,9.796e-05,2]
[405798276,1771321842276,-500.0,9.796e-05,2]
[405798277,1771321842287,-500.0,9.796e-05,2]
[405798278,1771321842297,-498.26652801,9.796e-05,2]
[405798279,1771321842306,-572.0,9.796e-05,2]
[405798280,1771321842316,-996.0,9.816e-05,2]
[405798281,1771321842326,-500.0,9.826e-05,2]
[405798282,1771321842335,-3358.0,9.85e-05,2]
[405798283,1771321842345,-500.0,9.85e-05,2]
[405798284,1771321842355,-445.0,9.85e-05,2]
[405798285,1771321842365,-500.0,9.85e-05,2]
[405798286,1771321842374,-611.76249723,9.85e-05,2]
[405798287,1771321842384,-572.0,9.85e-05,2]
[405798288,1771321842394,-313.19,9.896e-05,2]
[405798289,1771321842404,-4587.476,9.9e-05,2]
[405798290,1771321842413,-10000.0,9.9e-05,2]
[405798291,1771321842423,-3358.0,9.905e-05,2]
[405798292,1771321842432,-500.0,9.905e-05,2]
[405798293,1771321842442,-445.0,9.905e-05,2]
[405798294,1771321842451,-500.0,9.905e-05,2]
[405798295,1771321842462,-572.0,9.905e-05,2]
[405798296,1771321842472,-229.03490725,9.926e-05,2]
[405798297,1771321842483,-166.66,9.931e-05,2]
[405798298,1771321842494,-191.246046,9.952e-05,2]
[405798299,1771321842504,-3358.0,9.96e-05,2]
[405798300,1771321842514,-500.0,9.96e-05,2]
[405798301,1771321842524,-445.0,9.96e-05,2]
[405798302,1771321842534,-500.0,9.96e-05,2]
[405798303,1771321842544,-572.0,9.96e-05,2]
[405798304,1771321842761,-151.0,0.0001,2]
[405798305,1771321842773,-151.0,0.0001,2]
[405798306,1771321842783,-151.0,0.0001,2]
[405798307,1771321842794,-151.0,0.0001,2]
[405798308,1771321842803,-151.0,0.0001,2]
[405798309,1771321842813,-151.0,0.0001,2]
[405798310,1771321842824,-151.0,0.0001,2]
[405798311,1771321842835,-151.0,0.0001,2]
[405798312,1771321842846,-151.0,0.0001,2]
[405798313,1771321842855,-151.0,0.0001,2]
[405798314,1771321842865,-151.0,0.0001,2]
[405798315,1771321842876,-151.0,0.0001,2]
[405798316,1771321842888,-151.0,0.0001,2]
[405798317,1771321842899,-151.0,0.0001,2]
[405798318,1771321842909,-151.0,0.0001,2]
[405798319,1771321842920,-151.0,0.0001,2]
[405798320,1771321842931,-151.0,0.0001,2]
[405798321,1771321842941,-151.0,0.0001,2]
[405798322,1771321842951,-151.0,0.0001,2]
[405798323,1771321842961,-151.0,0.0001,2]
[405798324,1771321842971,-174.44086209,0.0001,2]
[405798325,1771321842981,-174.44086209,0.0001,2]
[405798326,1771321842990,-274.0,0.0001,2]
[405798327,1771321843000,-274.0,0.0001,2]
[405798328,1771321843010,-276.85061866,0.0001,2]
[405798329,1771321843020,-1576.69293966,0.0001,2]
[405798330,1771321843030,-885.17558433,0.0001,2]
[405798331,1771321843040,-885.17558433,0.0001,2]
[405798332,1771321843051,-3358.0,0.00010015,2]
[405798333,1771321843062,-500.0,0.00010015,2]
[405798334,1771321843072,-445.0,0.00010015,2]
[405798335,1771321843083,-500.0,0.00010015,2]
[405798336,1771321843092,-572.0,0.00010015,2]
[405798337,1771321843102,-3358.0,0.0001007,2]
[405798338,1771321843112,-500.0,0.0001007,2]
[405798339,1771321843122,-445.0,0.0001007,2]
[405798340,1771321843133,-481.0942881,0.0001007,2]
[405798341,1771321843143,-572.0,0.0001007,2]
[405798342,1771321843153,-500.0,0.000101,2]
[405798343,1771321843163,-3358.0,0.00010124,2]
[405798344,1771321843173,-500.0,0.00010124,2]
[405798345,1771321843183,-445.0,0.00010124,2]
[405798346,1771321843192,-572.0,0.00010124,2]
[405798347,1771321843201,-3358.0,0.00010179,2]
[405798348,1771321843213,-500.0,0.00010179,2]
[405798349,1771321843223,-445.0,0.00010179,2]
[405798350,1771321843232,-572.0,0.00010179,2]
[405798351,1771321843242,-3358.0,0.00010234,2]
[405798352,1771321843251,-500.0,0.00010234,2]
[405798353,1771321843261,-445.0,0.00010234,2]
[405798354,1771321843271,-572.0,0.00010234,2]
[405798355,1771321843281,-3358.0,0.00010289,2]
[405798357,1771321843290,-500.0,0.00010289,2]
[405798359,1771321843300,-445.0,0.00010289,2]
[405798361,1771321843310,-572.0,0.00010289,2]
[405798362,1771321843319,-433.0,0.00010343,2]
[405798363,1771321843329,-587.0,0.00010343,2]
[405798364,1771321843339,-2351.0,0.00010343,2]
[405798365,1771321843349,-3358.0,0.00010343,2]
[405798366,1771321843359,-500.0,0.00010343,2]
[405798367,1771321843369,-445.0,0.00010343,2]
[405798368,1771321843378,-572.0,0.00010343,2]
[405798369,1771321843388,-500.0,0.00010374,2]
[405798370,1771321843397,-2215.465337,0.00010378,2]
[405798371,1771321843407,-7997.592185,0.00010378,2]
[405798372,1771321843417,-3364.0,0.00010398,2]
[405798373,1771321843426,-512.26030593,0.00010398,2]
[405798374,1771321843436,-451.80031656,0.00010398,2]
[405798375,1771321843447,-581.2655769,0.00010398,2]
[405798376,1771321843456,-9999.99,0.00010475,2]
[405798377,1771321843466,-29999.99,0.00010475,2]
[405798378,1771321843476,-1401.0,0.00010475,2]
[405798379,1771321843486,-500.0,0.00010648,2]
[405798380,1771321843495,-898.32890406,0.0001077,2]
[405798381,1771321843505,-500.81972658,0.00010779,2]
[405798382,1771321843514,-500.0,0.00010779,2]
[405798383,1771321843523,-500.0,0.00010779,2]
[405798384,1771321843533,-500.0,0.00010779,2]
[405798385,1771321843542,-239.8459294,0.00010779,2]
[405798386,1771321843551,-500.86147052,0.00010779,2]
[405798387,1771321843561,-160.37289206,0.00010779,2]
[405798388,1771321843570,-500.0,0.00010779,2]
[405798389,1771321843579,-500.0,0.00010779,2]
[405798390,1771321843588,-502.12798245,0.00010779,2]
[405798391,1771321843599,-501.16029055,0.00010779,2]
[405798392,1771321843612,-500.0,0.00010779,2]
[405798393,1771321843621,-5300.13656816,0.000109,2]
[405798394,1771321843631,-5300.13656815,0.000109,2]
[405798395,1771321843640,-500.0,0.00010922,2]
[405798396,1771321843650,-27663.71790833,0.00011099,2]
[405798397,1771321843660,-27663.71790825,0.00011099,2]
[405798398,1771321843671,-27663.71790825,0.00011099,2]
[405798399,1771321843681,-27663.71790825,0.00011099,2]
[405798400,1771321843692,-27663.71790825,0.00011099,2]
[405798401,1771321843701,-8685.08379471,0.00011099,2]
[405798402,1771321843710,-8685.08379471,0.00011099,2]
[405798403,1771321843720,-8685.08379471,0.00011099,2]
[405798404,1771321843730,-8685.08379471,0.00011099,2]
[405798405,1771321843740,-8685.08379471,0.00011099,2]
[405798406,1771321843750,-5300.13656815,0.00011153,2]
[405798407,1771321843761,-500.0,0.00011196,2]
[405798408,1771321843771,-250.0,0.00011211,2]
[405798409,1771321843781,-27663.71790825,0.00011235,2]
[405798410,1771321843791,-8685.08379471,0.00011308,2]
[405798411,1771321843801,-1000.0,0.00011327,2]
[405798412,1771321843812,-1000.0,0.00011327,2]
[405798413,1771321843823,-1000.0,0.00011327,2]
[405798414,1771321843835,-1000.0,0.00011327,2]
[405798415,1771321843845,-643.23767655,0.00011327,2]
[405798416,1771321843855,-502.71949542,0.00011327,2]
[405798417,1771321843865,-500.0,0.00011349,2]
[405798418,1771321843875,-500.0,0.00011349,2]
[405798419,1771321843886,-500.0,0.00011349,2]
[405798420,1771321843895,-500.0,0.00011349,2]
[405798421,1771321843905,-500.0,0.00011349,2]
[405798422,1771321843914,-500.0,0.00011349,2]
[405798423,1771321843924,-500.0,0.00011349,2]
[405798424,1771321843933,-500.0,0.00011349,2]
[405798425,1771321843943,-500.0,0.00011349,2]
[405798426,1771321843952,-500.0,0.00011349,2]
[405798427,1771321843962,-500.0,0.00011349,2]
[405798428,1771321843971,-500.0,0.00011349,2]
[405798429,1771321843981,-500.0,0.00011349,2]
[405798430,1771321843991,-500.0,0.00011349,2]
[405798431,1771321844000,-500.0,0.00011349,2]
[405798432,1771321844009,-500.0,0.00011349,2]
[405798433,1771321844019,-500.0,0.00011349,2]
[405798434,1771321844028,-500.0,0.00011349,2]
[405798435,1771321844038,-500.0,0.00011349,2]
[405798436,1771321844047,-500.0,0.00011349,2]
[405798437,1771321844057,-736.0,0.00011377,2]
[405798438,1771321844066,-823.0,0.00011377,2]
[405798439,1771321844076,-3292.0,0.00011377,2]
[405798440,1771321844086,-500.0,0.0001147,2]
[405798441,1771321844095,-1338.69920235,0.00011726,2]
[405798442,1771321844104,-500.0,0.00011744,2]
[405798443,1771321844114,-27663.71790825,0.00011789,2]
[405798444,1771321844123,-8685.08379471,0.00011844,2]
[405798445,1771321844133,-1500.0,0.00011875,2]
[405798446,1771321844142,-1500.0,0.00011875,2]
[405798447,1771321844152,-1500.0,0.00011875,2]
[405798448,1771321844162,-1500.0,0.00011875,2]
[405798449,1771321844172,-500.0,0.00012018,2]
[405798450,1771321844181,-356.492415,0.00012242,2]
[405798451,1771321844191,-500.0,0.00012292,2]
[405798452,1771321844202,-27663.71790825,0.00012342,2]
[405798453,1771321844211,-8685.08379471,0.00012379,2]
[405798454,1771321844221,-85018.0,0.000124,2]
[405798455,1771321844231,-1799.80965345,0.00012423,2]
[405798456,1771321844240,-368.72151799,0.00012423,2]
[405798457,1771321844250,-2000.0,0.00012423,2]
[405798458,1771321844260,-2000.0,0.00012423,2]
[405798459,1771321844270,-152.996836,0.0001244,2]
[405798460,1771321844281,-5300.13656815,0.00012502,2]
[405798461,1771321844291,-1252.0,0.00012514,2]
[405798462,1771321844301,-1152.0,0.00012515,2]
[405798463,1771321844311,-4609.0,0.00012515,2]
[405798465,1771321844322,-500.0,0.00012565,2]
[405798467,1771321844332,-5530.0,0.000128,3]
[405798468,1771321844343,-500.0,0.00012839,2]
[405798469,1771321844353,-27663.71790825,0.00012896,2]
[405798470,1771321844362,-8685.08379471,0.00012915,2]
[405798471,1771321844371,-297.077011,0.00012967,2]
[405798472,1771321844381,-502.39964348,0.00012971,2]
[405798473,1771321844391,-2500.0,0.00012971,2]
[405798474,1771321844401,-2658.558404,0.00012973,2]
[405798475,1771321844410,-9597.110622,0.00012973,2]
[405798476,1771321844420,-500.0,0.00013113,2]
[405798477,1771321844430,-1576.69293966,0.00013168,2]
[405798478,1771321844440,-1563.90389462,0.00013177,2]
[405798479,1771321844450,-5530.0,0.000132,5]
[405798480,1771321844461,-500.0,0.00013387,2]
[405798481,1771321844471,-500.0,0.00013424,2]
[405798482,1771321844487,-150.0,0.00013424,2]
[405798483,1771321844499,-500.0,0.00013424,2]
[405798484,1771321844512,-500.0,0.00013424,2]
[405798485,1771321844524,-150.0,0.00013424,2]
[405798486,1771321844535,-150.0,0.00013424,2]
[405798487,1771321844545,-150.0,0.00013424,2]
[405798488,1771321844563,-500.0,0.00013424,2]
[405798489,1771321844578,-500.0,0.00013424,2]
[405798490,1771321844589,-150.0,0.00013424,2]
[405798491,1771321844599,-150.0,0.00013424,2]
[405798492,1771321844613,-8685.08379471,0.0001345,2]
[405798493,1771321844623,-27663.71790825,0.0001345,2]
[405798494,1771321844634,-500.0,0.00013479,2]
[405798495,1771321844645,-150.0,0.00013479,2]
[405798496,1771321844658,-500.0,0.00013479,2]
[405798497,1771321844668,-500.0,0.00013479,2]
[405798498,1771321844680,-150.0,0.00013479,2]
[405798499,1771321844691,-150.0,0.00013479,2]
[405798500,1771321844706,-150.0,0.00013479,2]
[405798501,1771321844716,-500.0,0.00013479,2]
[405798502,1771321844726,-649.65624143,0.00013479,2]
[405798503,1771321844737,-205.12968692,0.00013479,2]
[405798504,1771321844747,-244.28993987,0.00013479,2]
[405798505,1771321844758,-3000.0,0.00013519,2]
[405798506,1771321844768,-500.0,0.00013534,2]
[405798507,1771321844780,-242.84628954,0.00013534,2]
[405798508,1771321844790,-152.12850518,0.00013534,2]
[405798509,1771321844800,-500.0,0.00013534,2]
[405798510,1771321844811,-150.0,0.00013534,2]
[405798511,1771321844822,-200.36674187,0.00013534,2]
[405798512,1771321844833,-200.18645604,0.00013534,2]
[405798513,1771321844843,-500.0,0.00013534,2]
[405798514,1771321844853,-882239.28711804,0.0001355,2]
[405798515,1771321845482,-5815.67455181,0.0001355,2]
[405798516,1771321845674,-21010.10025066,0.0001355,2]
[405798517,1771321846035,-1414.12698853,0.00013177,2]
[405798518,1771321846197,-32895.95911612,8.63e-05,2]
[405798519,1771321846408,-2919.07204636,8.63e-05,2]
[405798522,1771321867314,466.613784,8.178e-05,2]
[405798541,1771322287592,500.0,8.201e-05,2]
[405798542,1771322323448,1852.42,7.999e-05,2]
[405798543,1771322362496,450.0,0.00011136,7]
[405798561,1771322577206,165.3,8.219e-05,2]
[405798564,1771322729344,-760.0,0.000117,5]
[405798566,1771322766623,317.626651,8.219e-05,2]
[405798567,1771322778796,-500.0,0.000117,5]
[405798568,1771322780168,-500.0,0.000116,5]
[405798569,1771322784570,-400.0,0.000116,5]
[405798571,1771322820084,-500.0,0.000116,5]
[405798572,1771322835164,823.06816832,0.00015,30]
[405798573,1771322835424,513.25460597,0.00015,30]
[405798574,1771322839324,436.0966601,0.00015,30]
[405798578,1771322860576,1395.03,6.717e-05,2]
[405798579,1771322860791,1395.03,6.779e-05,2]
[405798580,1771322860992,159.389565,6.842e-05,2]
[405798581,1771322861016,1235.640435,6.842e-05,2]
[405798582,1771322861176,1395.03,6.904e-05,2]
[405798583,1771322861387,1395.03,6.966e-05,2]
[405798584,1771322861576,1395.03,7.029e-05,2]
[405798585,1771322861800,1395.03,7.091e-05,2]
[405798586,1771322862021,1395.03,7.154e-05,2]
[405798587,1771322862255,1395.03,7.216e-05,2]
[405798588,1771322862453,394.189565,7.278e-05,2]
[405798589,1771322862475,1000.840435,7.278e-05,2]
[405798590,1771322862660,1395.03,7.341e-05,2]
[405798591,1771322862880,1395.03,7.403e-05,2]
[405798592,1771322863079,1395.03,7.465e-05,2]
[405798593,1771322863284,1395.03,7.528e-05,2]
[405798594,1771322863523,1395.03,7.59e-05,2]
[405798595,1771322863687,1395.03,7.653e-05,2]
[405798596,1771322863885,628.989565,7.715e-05,2]
[405798597,1771322863907,766.040435,7.715e-05,2]
[405798598,1771322864074,1395.03,7.777e-05,2]
[405798599,1771322864393,1395.03,7.84e-05,2]
[405798600,1771322864582,1395.03,7.902e-05,2]
[405798603,1771322870238,1600.0,7.902e-05,2]
[405798749,1771323031409,-1200.0,8.297e-05,2]
[405798750,1771323031419,-219.0,8.297e-05,2]
[405798751,1771323031429,-193.0,8.297e-05,2]
[405798752,1771323031439,-250.0,8.298e-05,2]
[405798753,1771323031450,-451.35166012,8.298e-05,2]
[405798759,1771323031841,-250.0,8.298e-05,2]
[405798760,1771323031851,-193.0,8.298e-05,2]
[405798761,1771323031861,-193.0,8.298e-05,2]
[405798762,1771323031871,-246.65202704,8.298e-05,2]
[405798763,1771323031881,-300.0,8.299e-05,2]
[405798764,1771323031890,-150.0,8.299e-05,2]
[405798765,1771323031900,-1200.0,8.299e-05,2]
[405798766,1771323031910,-300.0,8.299e-05,2]
[405798767,1771323031920,-229.0,8.3e-05,2]
[405798768,1771323031933,-500.0,8.3e-05,2]
[405798769,1771323031943,-1050.0,8.3e-05,2]
[405798770,1771323031953,-3514.826,8.3e-05,2]
[405798771,1771323031962,-299.032,8.3e-05,2]
[405798772,1771323031972,-1095.76793944,8.3e-05,2]
[405798773,1771323031981,-1095.76793944,8.3e-05,2]
[405798774,1771323031992,-1095.76793944,8.3e-05,2]
[405798775,1771323032001,-1095.76793944,8.3e-05,2]
[405798776,1771323032014,-1095.76793944,8.3e-05,2]
[405798777,1771323032024,-1095.76793944,8.3e-05,2]
[405798778,1771323032033,-1095.76793944,8.3e-05,2]
[405798779,1771323032043,-1095.76793944,8.3e-05,2]
[405798780,1771323032052,-1095.76793944,8.3e-05,2]
[405798781,1771323032061,-1095.76793944,8.3e-05,2]
[405798782,1771323032070,-1095.76793944,8.3e-05,2]
[405798783,1771323032079,-1095.76793944,8.3e-05,2]
[405798784,1771323032088,-446.69522265,8.3e-05,2]
[405798785,1771323032100,-289.88510599,8.3e-05,2]
[405798786,1771323032111,-359.1876108,8.3e-05,2]
[405798787,1771323032121,-495.12489113,8.3e-05,2]
[405798788,1771323032132,-600.64304831,8.3e-05,2]
[405798789,1771323032141,-53.30507261,8.3e-05,2]
[405798790,1771323032165,-1042.46286683,8.3e-05,2]
[405798791,1771323032174,-1095.76793944,8.3e-05,2]
[405798792,1771323032183,-1095.76793944,8.3e-05,2]